bitfinex-derivatives/quotes_SOLF0:USTF0_20241010
["timestamp","ask_amount","ask_price","bid_price","bid_amount"]
[1728526345623,11.03,139.44,139.43,0.12502]
[1728526347022,11.03,139.44,139.43,3.71442]
[1728526348223,11.03,139.44,139.43,0.12502]
[1728526350320,14.6191,139.44,139.43,0.12502]
[1728526353826,15.9441,139.44,139.43,0.12502]
[1728526354023,12.355,139.44,139.39,3.5904]
[1728526354328,11.03,139.4,139.39,3.5904]
[1728526355638,11.03,139.4,139.37,167.7856444]
[1728526355828,11.03,139.4,139.38,3.5906]
[1728526357028,11.03,139.39,139.37,171.3764444]
[1728526359628,11.03,139.39,139.37,3.71582]
[1728526360333,11.03,139.4,139.37,3.71582]
[1728526360836,11.03,139.4,139.38,3.5906]
[1728526364934,11.03,139.4,139.37,0.12502]
[1728526365137,14.6202,139.4,139.37,3.71582]
[1728526365336,11.03,139.39,139.37,3.71582]
[1728526367537,11.03,139.39,139.38,3.5907]
[1728526367734,11.03,139.4,139.37,0.12502]
[1728526368341,11.03,139.4,139.38,3.5905]
[1728526371039,11.03,139.4,139.37,0.12502]
[1728526371231,14.6202,139.4,139.37,3.71572]
[1728526371433,5.42,139.42,139.37,0.12502]
[1728526371636,11.03,139.39,139.37,0.12502]
[1728526372132,11.03,139.39,139.38,3.5905]
[1728526372337,11.03,139.39,139.37,0.12502]
[1728526373545,11.03,139.39,139.37,3.71582]
[1728526375935,11.03,139.4,139.38,3.5907]
[1728526377548,11.03,139.4,139.37,0.12502]
[1728526377846,16.45,139.41,139.39,3.5902]
[1728526379545,16.45,139.41,139.37,0.12502]
[1728526379747,5.42,139.41,139.4,3.5902]
[1728526380943,3.5902,139.4,139.38,3.5905]
[1728526381164,11.03,139.39,139.38,3.5905]
[1728526383647,11.03,139.4,139.38,3.5905]
[1728526388950,9.01,139.41,139.38,3.5905]
[1728526389153,11.03,139.4,139.38,3.5905]
[1728526395060,11.03,139.4,139.37,0.12502]
[1728526395365,11.03,139.4,139.38,3.5907]
[1728526395960,11.03,139.4,139.37,0.12502]
[1728526396158,11.03,139.4,139.37,3.71572]
[1728526397059,14.6203,139.4,139.37,3.71572]
[1728526411772,14.6204,139.39,139.37,0.12502]
[1728526412357,11.03,139.38,139.37,0.12502]
[1728526412559,20.0407,139.38,139.37,0.12502]
[1728526412867,16.45,139.38,139.31,0.12502]
[1728526413067,11.03,139.33,139.31,3.71732]
[1728526413272,11.03,139.33,139.31,0.12502]
[1728526414471,11.03,139.33,139.31,3.71742]
[1728526415769,11.03,139.33,139.31,0.12502]
[1728526416371,11.03,139.32,139.31,0.12502]
[1728526416675,16.45,139.32,139.31,0.12502]
[1728526416862,3.5928,139.3,139.26,3.5936]
[1728526417069,11.03,139.29,139.26,3.5936]
[1728526417280,11.03,139.28,139.25,0.12502]
[1728526417974,11.03,139.28,139.25,3.71892]
[1728526418164,11.03,139.28,139.25,0.12502]
[1728526419277,11.03,139.28,139.25,3.71902]
[1728526422289,5.42,139.29,139.25,11.15502]
[1728526422575,1.4034,139.31,139.27,11.03]
[1728526422779,1.4034,139.31,139.3,3.5927]
[1728526423173,1.4034,139.31,139.27,11.03]
[1728526423770,1.4034,139.31,139.29,3.5929]
[1728526424675,12.4334,139.31,139.29,3.5929]
[1728526427479,11.03,139.31,139.29,3.5929]
[1728526428273,11.03,139.31,139.3,3.5927]
[1728526431084,5.42,139.33,139.28,3.5932]
[1728526431285,11.03,139.32,139.26,11.03]
[1728526431470,11.03,139.32,139.27,1.3201537]
[1728526431675,11.03,139.32,139.3,3.5926]
[1728526442596,1.4446,139.35,139.32,3.5921]
[1728526442889,11.03,139.34,139.32,3.5921]
[1728526443275,6.8646,139.35,139.33,3.592]
[1728526443489,11.03,139.34,139.29,11.03]
[1728526444283,11.03,139.33,139.29,11.03]
[1728526445388,11.03,139.33,139.31,3.5923]
[1728526448395,11.03,139.34,139.31,3.5923]
[1728526449082,6.8646,139.35,139.33,3.5919]
[1728526449288,17.8946,139.35,139.29,11.03]
[1728526449484,11.03,139.34,139.32,3.5921]
[1728526451088,11.03,139.34,139.29,11.03]
[1728526451294,11.03,139.34,139.33,3.592]
[1728526455395,1.4446,139.35,139.34,3.5917]
[1728526455599,6.8035,139.36,139.34,3.5917]
[1728526456693,11.03,139.35,139.3,107.43524869]
[1728526456895,11.03,139.34,139.32,3.592]
[1728526457499,11.03,139.34,139.3,107.43524869]
[1728526457686,11.03,139.33,139.31,3.5923]
[1728526464201,11.7907,139.36,139.33,3.5919]
[1728526464394,11.03,139.35,139.33,3.5919]
[1728526466806,11.03,139.35,139.32,3.5921]
[1728526467901,11.03,139.34,139.3,118.46524869]
[1728526468111,11.03,139.34,139.31,3.5924]
[1728526476008,14.6216,139.35,139.32,3.5921]
[1728526476701,11.03,139.35,139.32,3.5921]
[1728526477106,11.03,139.34,139.31,3.5924]
[1728526477305,14.622,139.33,139.27,6.8467]
[1728526477513,14.622,139.33,139.27,17.8767]
[1728526477709,14.622,139.33,139.27,12.4767]
[1728526477909,11.03,139.32,139.29,3.5928]
[1728526478406,11.03,139.3,139.21,34.41239635]
[1728526478607,11.03,139.28,139.23,5.4]
[1728526478812,25.6952,139.36,139.22,12.4434]
[1728526478813,11.03,139.27,139.22,12.4434]
[1728526479011,11.03,139.27,139.22,17.8434]
[1728526479211,11.03,139.27,139.23,11.03]
[1728526479516,11.03,139.28,139.25,3.71882]
[1728526479716,11.03,139.29,139.25,0.12502]
[1728526479916,5.4,139.3,139.26,11.03]
[1728526480413,11.03,139.31,139.28,3.593]
[1728526480619,11.03,139.31,139.27,11.03]
[1728526481357,11.03,139.31,139.28,3.5932]
[1728526482718,3.5919,139.34,139.3,3.5925]
[1728526482923,20.0219,139.34,139.3,3.5925]
[1728526483218,11.03,139.33,139.3,3.5925]
[1728526483613,11.03,139.33,139.31,3.5924]
[1728526484926,14.622,139.33,139.3,3.5926]
[1728526487030,11.03,139.33,139.31,3.5925]
[1728526487226,16.43,139.34,139.31,3.5925]
[1728526488133,20.0217,139.34,139.31,3.5925]
[1728526489342,11.03,139.33,139.31,3.5925]
[1728526492535,14.622,139.33,139.31,3.5925]
[1728526500746,8.9918,139.34,139.31,3.5925]
[1728526500938,2.7994,139.36,139.32,11.03]
[1728526501143,8.1994,139.36,139.32,11.03]
[1728526501555,8.1994,139.36,139.33,3.5918]
[1728526502138,1.3959,139.36,139.35,3.5914]
[1728526502450,1.3959,139.36,139.33,11.03]
[1728526502846,1.3959,139.36,139.34,3.5915]
[1728526503445,1.3959,139.36,139.35,3.5914]
[1728526503644,5.52502,139.37,139.35,3.5914]
[1728526504551,0.12502,139.37,139.35,3.5914]
[1728526505848,0.12502,139.37,139.34,11.03]
[1728526506050,0.12502,139.37,139.36,3.5912]
[1728526506250,0.12502,139.37,139.36,14.6212]
[1728526507062,0.12502,139.37,139.32,1.4095]
[1728526507250,0.12502,139.37,139.34,3.5915]
[1728526512458,11.15502,139.37,139.34,3.5915]
[1728526512661,11.03,139.36,139.34,3.5915]
[1728526515357,11.03,139.36,139.31,5.4]
[1728526515562,14.6216,139.35,139.31,14.6223]
[1728526516554,3.5925,139.31,139.27,3.5934]
[1728526516757,11.03,139.3,139.25,11.15502]
[1728526517771,14.6229,139.3,139.26,14.6237]
[1728526518570,3.5932,139.29,139.25,14.74892]
[1728526518775,3.5932,139.29,139.25,11.15502]
[1728526519665,11.03,139.3,139.25,11.15502]
[1728526519863,14.6228,139.3,139.26,3.5937]
[1728526522769,14.623,139.29,139.26,3.5937]
[1728526527681,11.03,139.29,139.26,3.5937]
[1728526529886,5.38,139.32,139.26,11.03]
[1728526530084,5.38,139.33,139.28,11.03]
[1728526530282,16.41,139.33,139.28,11.03]
[1728526530485,3.5924,139.32,139.28,14.623]
[1728526530684,14.6224,139.32,139.28,11.03]
[1728526531480,14.6224,139.32,139.28,14.6231]
[1728526532185,3.5924,139.32,139.28,14.6231]
[1728526532486,14.6224,139.32,139.28,14.6231]
[1728526532876,14.6227,139.3,139.27,3.5934]
[1728526536691,11.03,139.3,139.27,3.5934]
[1728526537891,3.5926,139.31,139.28,3.5932]
[1728526538123,3.5923,139.32,139.26,11.03]
[1728526538288,14.6223,139.32,139.26,11.03]
[1728526538485,14.6223,139.32,139.28,3.593]
[1728526538688,14.6223,139.32,139.26,11.03]
[1728526539391,14.6223,139.32,139.28,3.5931]
[1728526539595,20.0023,139.32,139.26,11.03]
[1728526540191,16.41,139.32,139.29,3.5929]
[1728526541497,16.41,139.32,139.27,11.03]
[1728526541692,20.0023,139.32,139.28,3.5931]
[1728526543096,5.38,139.32,139.27,11.03]
[1728526543295,16.41,139.33,139.27,11.03]
[1728526543795,16.41,139.33,139.3,3.5925]
[1728526544396,20.002,139.33,139.3,3.5925]
[1728526545391,20.002,139.33,139.27,11.03]
[1728526545594,20.002,139.33,139.31,3.5925]
[1728526546093,20.002,139.33,139.3,3.5927]
[1728526546292,11.03,139.32,139.3,3.5927]
[1728526551893,14.6225,139.32,139.27,3.5933]
[1728526552094,14.6225,139.32,139.27,11.03]
[1728526552597,3.5925,139.31,139.28,3.5931]
[1728526561299,14.6225,139.31,139.28,3.5931]
[1728526569708,11.03,139.31,139.28,3.5931]
[1728526570416,14.6223,139.32,139.28,3.5931]
[1728526571316,3.5923,139.32,139.28,3.5931]
[1728526571514,11.03,139.31,139.29,3.593]
[1728526571709,8.9721,139.33,139.29,3.593]
[1728526572020,8.9721,139.33,139.28,11.03]
[1728526572021,20.0021,139.33,139.28,11.03]
[1728526572518,2.8797,139.34,139.3,11.03]
[1728526572709,16.41,139.36,139.32,11.03]
[1728526573116,16.41,139.36,139.35,3.5914]
[1728526573414,10.3377,139.38,139.35,3.5914]
[1728526573613,6.747,139.38,139.36,3.5912]
[1728526574611,17.777,139.38,139.34,11.03]
[1728526574830,21.3677,139.38,139.35,3.5914]
[1728526575013,11.15502,139.37,139.35,3.5914]
[1728526578913,11.03,139.36,139.33,3.5917]
[1728526580225,11.15502,139.37,139.32,11.03]
[1728526580521,11.15502,139.37,139.34,3.5916]
[1728526581417,14.74592,139.37,139.34,3.5916]
[1728526582219,0.12502,139.37,139.35,3.5914]
[1728526586024,11.15502,139.37,139.35,3.5914]
[1728526589837,14.6212,139.36,139.33,3.5918]
[1728526591321,11.03,139.36,139.33,3.5918]
[1728526591733,14.74602,139.37,139.33,14.6218]
[1728526594731,14.74602,139.37,139.33,11.03]
[1728526595037,14.74602,139.37,139.34,3.5916]
[1728526596629,224.0,139.48,139.36,11.03]
[1728526596829,3.71452,139.43,139.39,11.03]
[1728526597524,3.71452,139.43,139.4,3.5901]
[1728526598331,9.09452,139.43,139.4,3.5901]
[1728526600233,3.5896,139.42,139.34,2.8467]
[1728526600427,14.6196,139.42,139.39,3.5903]
[1728526602736,14.6199,139.41,139.38,3.5906]
[1728526606239,14.6206,139.39,139.36,3.591]
[1728526606436,11.03,139.37,139.34,1.4368]
[1728526606833,14.621,139.37,139.34,3.5916]
[1728526607236,11.03,139.36,139.34,3.5916]
[1728526607539,11.03,139.36,139.3,112.82071479]
[1728526607737,14.6213,139.36,139.33,3.5919]
[1728526607933,14.6213,139.36,139.31,0.12502]
[1728526608139,11.03,139.35,139.32,3.5921]
[1728526609545,14.6215,139.35,139.32,3.5921]
[1728526610041,14.6215,139.35,139.31,0.12502]
[1728526610352,11.03,139.33,139.31,0.12502]
[1728526610947,3.5922,139.32,139.31,0.12502]
[1728526611435,14.6222,139.32,139.31,0.12502]
[1728526611640,15.9478,139.32,139.31,0.12502]
[1728526617952,4.9178,139.32,139.31,0.12502]
[1728526618148,15.9478,139.32,139.31,0.12502]
[1728526620945,1.3256,139.32,139.31,0.12502]
[1728526621145,2.8035,139.36,139.31,0.12502]
[1728526621356,11.03,139.34,139.31,0.12502]
[1728526621946,14.6218,139.34,139.31,3.71732]
[1728526622154,20.0018,139.34,139.31,3.71732]
[1728526625449,16.41,139.34,139.32,3.5922]
[1728526625854,5.38,139.34,139.32,3.5922]
[1728526629455,1.421,139.36,139.31,11.15502]
[1728526629653,5.38,139.35,139.32,11.03]
[1728526629857,12.451,139.36,139.31,11.15502]
[1728526630660,16.41,139.37,139.32,11.03]
[1728526632464,20.0011,139.37,139.34,3.5915]
[1728526635770,5.38,139.37,139.35,3.5914]
[1728526637068,5.38,139.38,139.35,11.03]
[1728526637266,70.34291381,139.4,139.35,11.03]
[1728526637464,74.40491381,139.4,139.37,11.03]
[1728526637765,69.02491381,139.4,139.38,3.5906]
[1728526637974,0.12502,139.43,139.33,9.05427624]
[1728526638173,0.12502,139.43,139.41,14.6198]
[1728526638659,0.12502,139.43,139.42,11.03]
[1728526638864,0.12502,139.43,139.42,14.6196]
[1728526645397,10.2866,139.47,139.44,3.5891]
[1728526645589,3.5881,139.48,139.44,11.03]
[1728526645776,14.6181,139.48,139.44,11.03]
[1728526645970,14.6181,139.48,139.44,14.6191]
[1728526647575,3.5884,139.47,139.44,14.6191]
[1728526651284,3.5884,139.47,139.44,3.5891]
[1728526651483,3.5884,139.47,139.44,14.6191]
[1728526651980,11.03,139.48,139.44,14.6191]
[1728526652180,14.6182,139.48,139.44,14.6191]
[1728526652383,5.48502,139.49,139.45,11.03]
[1728526652685,5.48502,139.49,139.46,3.5886]
[1728526652880,9.07302,139.49,139.46,3.5886]
[1728526653783,0.12502,139.49,139.46,11.03]
[1728526654584,0.12502,139.49,139.47,14.6184]
[1728526654788,0.12502,139.49,139.47,11.03]
[1728526654989,0.12502,139.49,139.46,11.03]
[1728526655289,3.71282,139.49,139.46,14.6184]
[1728526655790,0.12502,139.49,139.47,3.5883]
[1728526657691,3.5882,139.48,139.45,3.5888]
[1728526659290,14.74292,139.49,139.45,3.5888]
[1728526660587,3.5881,139.48,139.45,3.5888]
[1728526665594,3.71302,139.49,139.45,3.5888]
[1728526666095,3.71302,139.49,139.45,14.6188]
[1728526666289,3.71302,139.49,139.46,3.5886]
[1728526669501,3.5881,139.48,139.45,14.6188]
[1728526672194,3.71302,139.49,139.46,3.5886]
[1728526683309,3.5884,139.47,139.43,6.769]
[1728526683705,3.5884,139.47,139.44,11.03]
[1728526684502,3.5884,139.47,139.44,14.619]
[1728526685101,3.5886,139.46,139.43,3.5893]
[1728526685303,3.5886,139.46,139.43,14.6193]
[1728526686011,3.5889,139.45,139.42,3.5896]
[1728526686513,3.5889,139.45,139.42,14.6196]
[1728526688509,3.5888,139.46,139.42,14.6196]
[1728526689510,3.5888,139.46,139.44,11.03]
[1728526690245,6.7382,139.47,139.44,14.6189]
[1728526690413,6.7382,139.47,139.45,11.03]
[1728526691115,6.7382,139.47,139.45,14.6187]
[1728526691318,5.36,139.47,139.46,11.03]
[1728526691714,3.5882,139.48,139.46,11.03]
[1728526692606,6.92072,139.49,139.46,11.03]
[1728526692806,0.12502,139.49,139.47,14.6183]
[1728526693015,0.12502,139.49,139.48,11.03]
[1728526693420,0.12502,139.49,139.48,14.6181]
[1728526693816,0.12502,139.49,139.48,11.03]
[1728526694221,0.12502,139.49,139.47,11.03]
[1728526694420,0.12502,139.49,139.47,14.6182]
[1728526696218,0.12502,139.49,139.48,14.6181]
[1728526701224,0.12502,139.49,139.46,11.03]
[1728526701622,0.12502,139.49,139.44,2.8391]
[1728526701623,0.12502,139.49,139.47,11.03]
[1728526701822,0.12502,139.49,139.47,14.6183]
[1728526704328,0.12502,139.49,139.48,11.03]
[1728526705019,0.12502,139.49,139.48,14.6181]
[1728526713542,0.12502,139.49,139.48,3.5881]
[1728526713731,0.12502,139.49,139.48,14.6181]
[1728526718340,0.12502,139.49,139.48,3.5881]
[1728526718638,0.12502,139.49,139.48,14.6181]
[1728526720535,0.12502,139.49,139.48,3.5881]
[1728526720754,0.12502,139.49,139.47,14.6183]
[1728526725048,0.12502,139.49,139.48,14.6181]
[1728526726542,0.12502,139.49,139.48,3.5881]
[1728526726742,0.12502,139.49,139.48,14.6181]
[1728526733046,0.12502,139.55,139.48,11.03]
[1728526733246,0.12502,139.55,139.53,11.03]
[1728526733633,0.12502,139.55,139.52,3.5869]
[1728526733839,0.12502,139.55,139.53,11.03]
[1728526735639,0.12502,139.55,139.53,14.6168]
[1728526737951,0.12502,139.55,139.52,11.03]
[1728526738245,11.15502,139.55,139.49,11.03]
[1728526738547,3.5867,139.54,139.5,3.5874]
[1728526739036,3.5872,139.52,139.48,15.9905]
[1728526739238,3.5872,139.52,139.48,12.4026]
[1728526739639,3.5869,139.53,139.49,3.5876]
[1728526739849,3.5869,139.53,139.49,11.03]
[1728526741041,19.9767,139.54,139.5,3.5874]
[1728526741550,8.9467,139.54,139.51,11.03]
[1728526742348,5.36,139.54,139.52,14.617]
[1728526742548,0.12502,139.55,139.53,11.03]
[1728526742750,0.12502,139.55,139.54,11.03]
[1728526744153,0.12502,139.55,139.54,14.6166]
[1728526750838,0.12502,139.55,139.52,3.5869]
[1728526751041,0.12502,139.55,139.53,11.03]
[1728526753350,0.12502,139.55,139.53,14.6167]
[1728526755046,0.12502,139.55,139.54,11.03]
[1728526755357,0.12502,139.55,139.54,14.6166]
[1728526773863,0.12502,139.55,139.52,3.5869]
[1728526774070,0.12502,139.55,139.53,11.03]
[1728526776671,3.71132,139.55,139.53,11.03]
[1728526777673,0.12502,139.55,139.53,11.03]
[1728526779278,0.12502,139.55,139.51,14.6172]
[1728526779872,3.5866,139.54,139.51,14.6172]
[1728526780885,0.12502,139.55,139.51,11.03]
[1728526781085,3.5866,139.54,139.51,11.03]
[1728526785487,3.5866,139.54,139.51,14.6173]
[1728526785788,3.5866,139.54,139.51,3.5873]
[1728526793190,12.52052,139.55,139.48,6.7326]
[1728526793488,3.5869,139.53,139.5,3.5874]
[1728526793993,14.6169,139.53,139.5,3.5874]
[1728526796290,3.5869,139.53,139.5,3.5874]
[1728526796595,14.6166,139.54,139.51,3.5872]
[1728526799497,5.07692,139.55,139.52,3.5869]
[1728526799894,0.12502,139.55,139.52,11.03]
[1728526800291,0.12502,139.55,139.53,3.5867]
[1728526802693,0.12502,139.55,139.53,11.03]
[1728526802893,0.12502,139.55,139.54,14.6166]
[1728526804195,0.12502,139.55,139.54,3.5866]
[1728526804503,0.12502,139.55,139.54,14.6166]
[1728526817800,0.12502,139.55,139.54,19.9566]
[1728526820805,0.12502,139.61,139.58,3.5853]
[1728526821006,0.12502,139.61,139.58,14.6153]
[1728526824408,0.12502,139.61,139.59,3.5852]
[1728526824805,0.12502,139.61,139.6,11.03]
[1728526825000,0.12502,139.61,139.6,14.615]
[1728526827312,0.12502,139.61,139.6,3.585]
[1728526832308,0.12502,139.61,139.58,3.5853]
[1728526833614,0.12502,139.61,139.59,3.5852]
[1728526834211,3.71002,139.61,139.57,3.5857]
[1728526834410,0.12502,139.61,139.57,11.03]
[1728526835107,0.12502,139.61,139.59,3.5853]
[1728526836316,0.12502,139.61,139.59,14.6153]
[1728526846616,0.12502,139.61,139.53,1.4312]
[1728526846812,11.03,139.6,139.54,5.34]
[1728526847016,11.03,139.6,139.55,11.03]
[1728526847219,16.37,139.6,139.55,11.03]
[1728526849525,14.6153,139.59,139.56,3.5859]
[1728526850115,11.03,139.59,139.55,11.03]
[1728526850323,14.6157,139.58,139.55,3.5863]
[1728526852415,3.5861,139.56,139.53,3.5866]
[1728526852617,3.5861,139.56,139.53,14.6166]
[1728526853320,14.6159,139.57,139.53,14.6166]
[1728526854019,14.6159,139.57,139.54,3.5865]
[1728526854532,3.5861,139.56,139.53,11.03]
[1728526855329,3.5864,139.55,139.52,11.03]
[1728526856031,14.6162,139.56,139.52,14.6168]
[1728526858219,14.6162,139.56,139.53,3.5868]
[1728526860124,3.5862,139.56,139.53,3.5868]
[1728526860318,3.5862,139.56,139.53,14.6168]
[1728526860517,5.34,139.57,139.53,11.03]
[1728526860715,8.926,139.57,139.54,3.5864]
[1728526863325,19.956,139.57,139.54,3.5864]
[1728526863731,3.5861,139.56,139.54,3.5864]
[1728526875241,14.6161,139.56,139.54,3.5864]
[1728526876737,14.6161,139.56,139.53,3.5867]
[1728526878340,11.03,139.56,139.51,11.03]
[1728526878536,5.34,139.57,139.49,5.46502]
[1728526878537,11.03,139.54,139.49,0.12502]
[1728526879138,11.03,139.54,139.49,11.15502]
[1728526880542,14.6167,139.54,139.51,3.5872]
[1728526881645,3.5868,139.53,139.5,3.5875]
[1728526885648,11.03,139.52,139.49,0.12502]
[1728526885947,14.6171,139.52,139.49,3.71272]
[1728526890049,5.34,139.54,139.49,3.71272]
[1728526890050,11.03,139.5,139.49,0.12502]
[1728526890749,14.6176,139.5,139.49,0.12502]
[1728526893349,3.5876,139.5,139.49,0.12502]
[1728526899662,14.6176,139.5,139.49,0.12502]
[1728526908266,11.03,139.5,139.49,0.12502]
[1728526909371,14.6176,139.5,139.49,0.12502]
[1728526913169,1.4394,139.53,139.49,0.12502]
[1728526913364,21.3964,139.53,139.5,3.5876]
[1728526913869,17.8094,139.53,139.5,3.5876]
[1728526914067,14.6171,139.52,139.49,3.71272]
[1728526917870,14.6171,139.52,139.49,0.12502]
[1728526918071,3.5871,139.52,139.5,3.5876]
[1728526918273,3.5864,139.55,139.5,11.03]
[1728526918572,3.5864,139.55,139.49,0.12502]
[1728526918573,5.34,139.54,139.52,3.5869]
[1728526921375,5.34,139.54,139.51,11.03]
[1728526921574,12.3429,139.56,139.53,3.5866]
[1728526921575,5.34,139.55,139.53,3.5866]
[1728526921974,16.37,139.55,139.51,11.03]
[1728526922175,11.03,139.54,139.5,11.03]
[1728526922876,14.6167,139.54,139.51,3.5872]
[1728526923077,11.03,139.54,139.49,11.15502]
[1728526923277,14.6171,139.52,139.49,3.71272]
[1728526923575,11.03,139.51,139.49,0.12502]
[1728526923981,14.6175,139.51,139.49,0.12502]
[1728526924568,11.03,139.51,139.49,3.71282]
[1728526924770,14.6172,139.52,139.49,3.71282]
[1728526927467,11.03,139.53,139.49,11.15502]
[1728526927673,11.03,139.53,139.51,3.5873]
[1728526928580,16.37,139.55,139.52,3.587]
[1728526928786,5.34,139.55,139.51,11.03]
[1728526929173,5.34,139.55,139.52,3.5869]
[1728526929886,16.37,139.55,139.52,3.5869]
[1728526930378,19.9563,139.55,139.52,3.5869]
[1728526934083,4.899,139.56,139.53,3.5868]
[1728526934296,5.34,139.57,139.52,11.03]
[1728526934587,5.34,139.57,139.54,11.03]
[1728526934782,8.9259,139.57,139.54,14.6165]
[1728526935281,19.9559,139.57,139.54,14.6165]
[1728526935583,14.6161,139.56,139.52,3.5868]
[1728526935886,11.03,139.55,139.52,3.5868]
[1728526936184,11.03,139.54,139.52,3.5868]
[1728526936887,11.03,139.55,139.52,3.5868]
[1728526937480,14.6164,139.55,139.52,3.5868]
[1728526945595,14.6164,139.55,139.51,11.03]
[1728526945596,3.5867,139.54,139.51,3.5873]
[1728526946690,11.03,139.53,139.49,0.12502]
[1728526946891,11.03,139.51,139.49,0.12502]
[1728526947890,14.6174,139.51,139.49,0.12502]
[1728526948488,14.6176,139.5,139.49,0.12502]
[1728526949392,11.03,139.5,139.49,0.12502]
[1728526952598,14.6176,139.5,139.49,0.12502]
[1728526952989,3.5876,139.5,139.49,0.12502]
[1728526955196,5.32,139.51,139.49,0.12502]
[1728526955396,8.9074,139.51,139.49,0.12502]
[1728526955603,5.32,139.51,139.5,11.03]
[1728526957297,5.32,139.53,139.5,11.03]
[1728526957497,5.32,139.53,139.52,11.03]
[1728526958005,5.32,139.53,139.51,14.6171]
[1728526964500,3.5864,139.55,139.52,3.5871]
[1728526964703,8.9064,139.55,139.52,3.5871]
[1728526966413,3.5866,139.54,139.51,3.5872]
[1728526982227,8.9064,139.55,139.52,3.587]
[1728526984320,5.32,139.55,139.5,11.03]
[1728526984620,3.5866,139.54,139.51,3.5872]
[1728526991133,3.5866,139.54,139.51,14.6172]
[1728526991328,8.9063,139.55,139.52,3.5869]
[1728526995838,1.3284,139.57,139.51,11.03]
[1728526996036,1.3284,139.57,139.54,3.5865]
[1728526996037,3.5861,139.56,139.54,3.5865]
[1728526996534,6.6484,139.57,139.54,3.5865]
[1728526996739,1.3284,139.57,139.55,3.5862]
[1728526998833,1.3284,139.57,139.54,11.03]
[1728526998834,4.9142,139.57,139.54,11.03]
[1728526999035,4.9142,139.57,139.54,14.6165]
[1728526999836,4.9142,139.57,139.54,3.5865]
[1728527004243,12.3584,139.57,139.53,11.03]
[1728527004442,3.5861,139.56,139.53,14.6167]
[1728527007452,3.5861,139.56,139.54,11.03]
[1728527010051,1.3284,139.57,139.54,11.03]
[1728527010245,4.9144,139.57,139.54,14.6165]
[1728527013344,3.5863,139.56,139.53,14.6168]
[1728527014145,12.3584,139.57,139.53,14.6168]
[1728527014351,3.5863,139.55,139.53,14.6168]
[1728527014846,3.5863,139.55,139.53,11.03]
[1728527015548,16.35,139.55,139.49,0.12502]
[1728527015747,11.03,139.54,139.49,0.12502]
[1728527016343,3.5871,139.52,139.49,3.71272]
[1728527016945,3.5874,139.51,139.49,0.12502]
[1728527017150,11.03,139.52,139.49,0.12502]
[1728527018452,14.6172,139.52,139.49,3.71282]
[1728527021058,3.5874,139.51,139.49,0.12502]
[1728527023051,14.6172,139.52,139.49,3.71282]
[1728527023947,3.5872,139.52,139.49,14.74282]
[1728527025956,11.03,139.54,139.49,14.74282]
[1728527026159,3.5869,139.53,139.49,14.74282]